bitfinex/quotes_BTCUSD_20220212
["timestamp","ask_amount","ask_price","bid_price","bid_amount"]
[1644632940674,0.46405484,42413.0,42410.0,0.047165]
[1644632940873,0.2634781,42413.0,42410.0,0.047165]
[1644632941373,0.46430338,42413.0,42410.0,0.047165]
[1644632941574,0.46395484,42413.0,42410.0,0.047165]
[1644632941773,0.46405484,42413.0,42410.0,0.047165]
[1644632941973,0.46405484,42413.0,42411.0,0.020067]
[1644632942176,0.46405484,42413.0,42410.0,0.047165]
[1644632942826,0.20067674,42413.0,42410.0,0.047165]
[1644632943027,0.20067674,42413.0,42411.0,0.058957]
[1644632943228,0.20067674,42413.0,42411.0,0.082539]
[1644632944030,0.20067674,42413.0,42411.0,0.30962263]
[1644632946230,0.20082528,42413.0,42411.0,0.30962263]
[1644632946429,0.20067674,42413.0,42411.0,0.30962263]
[1644632947278,0.20082528,42413.0,42411.0,0.30962263]
[1644632947479,0.20067674,42413.0,42411.0,0.30962263]
[1644632949083,0.20067674,42413.0,42410.0,0.047165]
[1644632949282,0.20067674,42413.0,42411.0,0.020067]
[1644632949482,0.20067674,42413.0,42410.0,0.047165]
[1644632949881,0.20067674,42413.0,42411.0,0.023582]
[1644632950082,0.20057674,42413.0,42411.0,0.023582]
[1644632950328,0.20057674,42413.0,42412.0,0.020066]
[1644632950528,0.20057674,42413.0,42411.0,0.082539]
[1644632951927,0.20045024,42413.0,42411.0,0.082539]
[1644632952328,0.20045024,42413.0,42412.0,0.08891981]
[1644632954993,0.00034854,42414.0,42412.0,0.21523681]
[1644632955292,0.00034854,42414.0,42413.0,0.020064]
[1644632955293,0.00024854,42414.0,42413.0,0.020064]
[1644632955494,0.0001,42416.0,42413.0,0.020064]
[1644632955690,0.00054965,42415.0,42413.0,0.020064]
[1644632955891,0.00054965,42415.0,42414.0,0.020062]
[1644632956191,0.00079819,42415.0,42414.0,0.020062]
[1644632956393,0.00054965,42415.0,42412.0,0.19517181]
[1644632956591,0.00034854,42416.0,42412.0,0.19517181]
[1644632956792,0.00034854,42416.0,42412.0,0.106252]
[1644632958029,0.49906971,42416.0,42414.0,0.020062]
[1644632958224,0.24996144,42415.0,42414.0,0.020062]
[1644632958626,0.24507942,42415.0,42412.0,0.106252]
[1644632958825,0.00024854,42415.0,42414.0,0.08369583]
[1644632959028,0.2458088,42415.0,42412.0,0.106252]
[1644632959226,0.00024854,42415.0,42413.0,0.020063]
[1644632959427,0.25127058,42416.0,42413.0,0.020063]
[1644632959627,0.24760847,42415.0,42414.0,0.020062]
[1644632960027,0.24760847,42415.0,42412.0,0.106252]
[1644632960229,0.00024854,42415.0,42412.0,0.106252]
[1644632960428,0.25072093,42416.0,42412.0,0.106252]
[1644632960830,0.25096947,42416.0,42413.0,0.06864716]
[1644632961031,0.25096947,42416.0,42414.0,0.020062]
[1644632961230,0.25096947,42416.0,42414.0,0.058954]
[1644632961434,0.25096947,42416.0,42415.0,0.02006]
[1644632961678,0.3803,42425.0,42415.0,0.02006]
[1644632961679,0.00079819,42417.0,42415.0,0.02006]
[1644632961880,0.00054965,42417.0,42415.0,0.02006]
[1644632962077,0.00054965,42417.0,42416.0,0.20063075]
[1644632962277,0.00079819,42417.0,42416.0,0.22068875]
[1644632962480,0.00024854,42419.0,42416.0,0.22068875]
[1644632962678,0.20064466,42420.0,42418.0,0.058944]
[1644632962877,0.00077876,42419.0,42418.0,0.102576]
[1644632963077,0.00053022,42419.0,42418.0,0.102576]
[1644632963477,0.00053022,42419.0,42418.0,0.082522]
[1644632963678,0.20064466,42421.0,42418.0,0.082522]
[1644632963876,0.0001,42420.0,42419.0,0.020053]
[1644632964277,0.0001,42420.0,42418.0,0.082522]
[1644632964577,0.00034854,42420.0,42418.0,0.082522]
[1644632964779,0.0001,42420.0,42418.0,0.082522]
[1644632965077,0.00034854,42420.0,42418.0,0.082522]
[1644632965323,0.0001,42420.0,42418.0,0.082522]
[1644632965524,0.00034854,42420.0,42418.0,0.082522]
[1644632965723,0.00063021,42421.0,42418.0,0.082522]
[1644632965928,0.00087875,42421.0,42418.0,0.082522]
[1644632966124,0.00034854,42421.0,42418.0,0.082522]
[1644632966627,0.00034854,42421.0,42419.0,0.020052]
[1644632966824,0.00034854,42421.0,42418.0,0.082522]
[1644632966825,0.00024854,42421.0,42418.0,0.082522]
[1644632967025,0.00053086,42422.0,42418.0,0.082522]
[1644632967324,0.00034854,42423.0,42418.0,0.082522]
[1644632967325,0.00024854,42421.0,42418.0,0.082522]
[1644632967524,0.00024854,42422.0,42418.0,0.082522]
[1644632967724,0.00053086,42422.0,42418.0,0.082522]
[1644632967925,0.0008794,42422.0,42418.0,0.082522]
[1644632968426,0.00053086,42422.0,42418.0,0.082522]
[1644632968626,0.00034854,42423.0,42418.0,0.082522]
[1644632968826,0.00053086,42422.0,42418.0,0.082522]
[1644632969475,0.0008794,42422.0,42418.0,0.082522]
[1644632969678,0.00034854,42422.0,42418.0,0.082522]
[1644632970076,0.00086146,42422.0,42418.0,0.082522]
[1644632970980,0.00034854,42422.0,42418.0,0.082522]
[1644632971178,0.00086146,42422.0,42418.0,0.082522]
[1644632972078,0.00034854,42422.0,42418.0,0.082522]
[1644632972479,0.00086146,42422.0,42418.0,0.082522]
[1644632973431,0.00034854,42422.0,42418.0,0.082522]
[1644632973635,0.00086267,42422.0,42418.0,0.082522]
[1644632974633,0.00034854,42422.0,42418.0,0.082522]
[1644632974835,0.00086267,42422.0,42418.0,0.082522]
[1644632975736,0.00034854,42422.0,42418.0,0.082522]
[1644632975936,0.00086267,42422.0,42418.0,0.082522]
[1644632976978,0.00034854,42422.0,42418.0,0.082522]
[1644632977180,0.00086259,42422.0,42418.0,0.082522]
[1644632978181,0.00034854,42422.0,42418.0,0.082522]
[1644632978382,0.00086259,42422.0,42418.0,0.082522]
[1644632979181,0.00086259,42422.0,42416.0,0.058944]
[1644632979182,0.00086259,42422.0,42414.0,0.04495902]
[1644632979381,0.00034854,42422.0,42414.0,0.04495902]
[1644632979581,0.00086259,42422.0,42414.0,0.04495902]
[1644632979784,0.00086259,42422.0,42418.0,0.023578]
[1644632980188,0.00086259,42422.0,42418.0,0.058944]
[1644632980429,0.25295422,42422.0,42418.0,0.058944]
[1644632980628,0.20421164,42421.0,42418.0,0.058944]
[1644632980928,0.0001,42420.0,42418.0,0.058944]
[1644632981127,0.00034854,42420.0,42418.0,0.058944]
[1644632981332,0.0001,42420.0,42418.0,0.058944]
[1644632981528,0.00034854,42420.0,42418.0,0.058944]
[1644632981727,0.0001,42420.0,42418.0,0.058944]
[1644632981928,0.00034854,42420.0,42418.0,0.058944]
[1644632982128,0.0001,42420.0,42418.0,0.058944]
[1644632982329,0.00034854,42420.0,42418.0,0.058944]
[1644632982528,0.0001,42420.0,42418.0,0.082523]
[1644632982729,0.00034854,42420.0,42418.0,0.082523]
[1644632982929,0.0001,42420.0,42418.0,0.082523]
[1644632983130,0.00034854,42420.0,42418.0,0.082523]
[1644632983329,0.0001,42420.0,42418.0,0.082523]
[1644632983529,0.00034854,42420.0,42418.0,0.082523]
[1644632983730,0.0001,42420.0,42418.0,0.082523]
[1644632983934,0.00034854,42420.0,42418.0,0.082523]
[1644632984199,0.0001,42420.0,42418.0,0.082523]
[1644632984401,0.00034854,42420.0,42418.0,0.082523]
[1644632984598,0.0001,42420.0,42418.0,0.082523]
[1644632985298,0.00034854,42420.0,42418.0,0.082523]
[1644632985499,0.00034854,42422.0,42418.0,0.082523]
[1644632985700,0.00047268,42421.0,42418.0,0.082523]
[1644632986101,0.00047268,42421.0,42419.0,0.23012914]
[1644632986305,0.00047268,42421.0,42420.0,0.06735]
[1644632986507,0.00047268,42421.0,42420.0,0.1445178]
[1644632986802,0.0001,42428.0,42420.0,0.0473]
[1644632986803,0.00034854,42428.0,42420.0,0.0473]
[1644632987001,0.00034854,42428.0,42422.0,0.058941]
[1644632987203,0.00034854,42428.0,42423.0,0.0473]
[1644632987827,0.00034854,42428.0,42424.0,0.020041]
[1644632988027,0.00034854,42428.0,42425.0,0.0473]
[1644632988228,0.00034854,42428.0,42426.0,0.020039]
[1644632988431,0.00034854,42428.0,42427.0,0.0473]
[1644632988628,0.0001,42428.0,42427.0,0.067337]
[1644632989832,0.29534854,42429.0,42427.0,0.067337]
[1644632990031,0.37908481,42429.0,42427.0,0.067337]
[1644632990432,0.08398481,42429.0,42428.0,0.020035]
[1644632990632,0.08398481,42429.0,42428.0,0.067335]
[1644632990633,0.33734223,42429.0,42428.0,0.067335]
[1644632990832,0.33734223,42429.0,42428.0,0.0473]
[1644632991333,0.53783551,42429.0,42428.0,0.0473]
[1644632991593,0.53783551,42429.0,42425.0,0.058941]
[1644632991784,0.20049328,42428.0,42426.0,0.020036]
[1644632991983,0.2736902,42427.0,42426.0,0.020036]
[1644632992184,0.2736902,42427.0,42425.0,0.058941]
[1644632992485,0.27393874,42427.0,42425.0,0.058941]
[1644632992685,0.27393874,42427.0,42426.0,0.020039]
[1644632992887,0.2736902,42427.0,42426.0,0.020039]
[1644632994288,0.2736902,42427.0,42425.0,0.058941]
[1644632994490,0.329661,42426.0,42422.0,0.117879]
[1644632994692,0.329661,42426.0,42422.0,0.0001]
[1644632994693,0.20049328,42424.0,42422.0,0.0001]
[1644632994891,0.20049328,42424.0,42419.0,0.0001]
[1644632994892,0.629661,42423.0,42419.0,0.0001]
[1644632995190,0.629661,42423.0,42410.0,0.20047207]
[1644632995191,0.329661,42420.0,42415.0,0.0001]
[1644632995427,0.329661,42420.0,42410.0,0.0001]
[1644632995428,0.31997682,42416.0,42410.0,0.0001]
[1644632995628,0.329661,42415.0,42409.0,0.00048598]
[1644632995829,0.329661,42415.0,42409.0,0.00058598]
[1644632996330,0.329661,42415.0,42409.0,0.00058872]
[1644632996531,0.33014965,42415.0,42409.0,0.00048872]
[1644632996734,0.33014965,42415.0,42409.0,0.05945172]
[1644632996735,0.329661,42414.0,42409.0,0.05945172]
[1644632996931,0.329661,42414.0,42410.0,0.0001]
[1644632997131,0.329661,42414.0,42409.0,0.00048872]
[1644632997331,0.329661,42414.0,42407.0,0.0001]
[1644632997531,0.329661,42414.0,42409.0,0.00048871]
[1644632997932,0.00048864,42415.0,42409.0,0.05945071]
[1644632998232,0.30048864,42415.0,42410.0,0.0001]
[1644632998531,0.23291532,42416.0,42410.0,0.0001]
[1644632998932,0.24073041,42415.0,42410.0,0.0001]
[1644632999786,0.24024176,42415.0,42410.0,0.0001]
[1644632999987,0.329661,42414.0,42410.0,0.0001]
[1644633001791,0.07587413,42412.0,42410.0,0.0001]
[1644633001994,0.57518649,42411.0,42410.0,0.0001]
[1644633002194,0.329661,42411.0,42410.0,0.0001]
[1644633002591,0.27142248,42414.0,42410.0,0.0001]
[1644633002825,0.28629317,42414.0,42410.0,0.0001]
[1644633003226,0.329661,42413.0,42410.0,0.0001]
[1644633003629,0.3950627,42411.0,42410.0,0.0001]
[1644633003828,0.0654017,42411.0,42410.0,0.0001]
[1644633004032,0.65046756,42411.0,42410.0,0.0001]
[1644633004729,0.20477438,42408.0,42407.0,0.0001]
[1644633004932,0.53443538,42408.0,42407.0,0.0001]
[1644633006129,0.20477438,42408.0,42407.0,0.0001]
[1644633006429,0.53443538,42408.0,42407.0,0.0001]
[1644633006678,0.20477438,42408.0,42407.0,0.0001]
[1644633008078,0.20477438,42408.0,42407.0,0.05906]
[1644633008378,0.329661,42413.0,42407.0,0.05906]
[1644633008578,0.329661,42413.0,42409.0,0.023585]
[1644633008978,0.41833326,42413.0,42409.0,0.023585]
[1644633009278,0.35,42410.0,42405.0,0.00679313]
[1644633009477,0.35,42410.0,42405.0,0.00630402]
[1644633009478,0.24896825,42410.0,42405.0,0.00630402]
[1644633009681,0.24896825,42410.0,42409.0,0.00048909]
[1644633010728,0.24896825,42410.0,42408.0,0.082544]
[1644633011530,0.07584418,42411.0,42408.0,0.082544]
[1644633012331,0.24649631,42410.0,42408.0,0.082544]
[1644633013335,0.07584418,42411.0,42408.0,0.082544]
[1644633014183,0.0001,42412.0,42409.0,0.020069]
[1644633014384,0.0001,42413.0,42408.0,0.082544]
[1644633014583,0.07584418,42410.0,42408.0,0.082544]
[1644633015584,0.07584418,42410.0,42408.0,0.058961]
[1644633018128,0.2472573,42409.0,42408.0,0.058961]
[1644633018329,0.2472573,42409.0,42407.0,0.07713733]
[1644633019130,0.2472573,42409.0,42407.0,0.076649]
[1644633019327,0.06884683,42408.0,42407.0,0.076649]
[1644633019528,0.28035857,42413.0,42407.0,0.076649]
[1644633019735,0.26052583,42414.0,42407.0,0.076649]
[1644633019736,0.07584418,42408.0,42407.0,0.076649]
[1644633024887,0.26052583,42414.0,42407.0,0.076649]
[1644633025086,0.07584418,42410.0,42407.0,0.076649]
[1644633030198,0.33987026,42414.0,42407.0,0.076649]
[1644633030399,0.07584418,42408.0,42407.0,0.076649]
[1644633033738,0.40550518,42408.0,42407.0,0.076649]
[1644633034438,0.40550518,42408.0,42407.0,0.27712107]
[1644633034640,0.07584418,42408.0,42407.0,0.27712107]
[1644633034839,0.40550518,42408.0,42407.0,0.27712107]
[1644633035338,0.07584418,42408.0,42407.0,0.27712107]
[1644633036589,0.07584418,42408.0,42407.0,0.076589]
[1644633036884,0.07565575,42408.0,42407.0,0.076589]
[1644633037085,0.03792209,42408.0,42407.0,0.076589]
[1644633037284,0.07565575,42408.0,42407.0,0.076589]
[1644633037486,0.07565575,42408.0,42407.0,0.05896]
[1644633037984,0.07565575,42408.0,42407.0,0.35982206]
[1644633039186,0.00052115,42415.0,42412.0,0.058957]
[1644633039384,0.329661,42414.0,42412.0,0.058957]
[1644633041135,0.39565388,42413.0,42412.0,0.058957]
[1644633041533,0.06599288,42413.0,42412.0,0.058957]
[1644633042134,0.39565388,42413.0,42410.0,0.20065595]
[1644633042333,0.51329607,42412.0,42410.0,0.20065595]
[1644633042534,0.51329607,42412.0,42409.0,0.20117721]
[1644633043134,0.19487909,42410.0,42408.0,0.20065595]
[1644633043335,0.329661,42409.0,42408.0,0.2011772]
[1644633044181,0.329661,42409.0,42408.0,0.20065595]
[1644633044981,0.19487909,42410.0,42408.0,0.20065595]
[1644633045182,0.329661,42409.0,42408.0,0.20065595]
[1644633045884,0.19487909,42410.0,42408.0,0.20065595]
[1644633046086,0.18306427,42409.0,42408.0,0.20065595]
[1644633047090,0.18306427,42409.0,42406.0,0.11844326]
[1644633047091,0.56272527,42409.0,42406.0,0.14068747]
[1644633047291,0.329661,42408.0,42406.0,0.00052126]
[1644633047834,0.329661,42408.0,42400.0,0.25081994]
[1644633047835,0.429661,42408.0,42403.0,0.00021408]
[1644633048034,0.08003308,42405.0,42403.0,0.00021408]
[1644633048234,0.329661,42404.0,42398.0,0.25081994]
[1644633048434,0.329661,42404.0,42398.0,0.25103402]
[1644633048636,0.329661,42404.0,42398.0,0.25081994]
[1644633049239,0.20368095,42403.0,42398.0,0.25081994]
[1644633049438,0.21438109,42400.0,42398.0,0.25081994]
[1644633050037,0.21438109,42400.0,42397.0,0.25103402]
[1644633050236,0.21438109,42400.0,42397.0,0.25081994]
[1644633050437,0.21438109,42400.0,42397.0,0.25103402]
[1644633051588,0.329661,42399.0,42397.0,0.25103402]
[1644633052183,0.329661,42398.0,42397.0,0.00021408]
[1644633052386,0.57579528,42399.0,42398.0,0.41559491]
[1644633052584,0.57579528,42399.0,42398.0,0.41059491]
[1644633053186,0.24613428,42399.0,42398.0,0.41059491]
[1644633053587,0.57579528,42399.0,42398.0,0.41059491]
[1644633053788,0.329661,42399.0,42398.0,0.41059491]
[1644633054990,0.57547251,42399.0,42398.0,0.41059491]
[1644633055192,0.24581151,42399.0,42398.0,0.41059491]
[1644633056652,0.57547251,42399.0,42398.0,0.41059491]
[1644633056849,0.24581151,42399.0,42398.0,0.41059491]
[1644633057050,0.24581151,42399.0,42398.0,0.61117103]
[1644633057850,0.00664768,42400.0,42398.0,0.61117103]
[1644633058052,0.329661,42399.0,42398.0,0.61117103]
[1644633058251,0.329661,42399.0,42398.0,0.41059491]
[1644633058552,0.329661,42399.0,42398.0,0.46978399]
[1644633059385,0.329661,42399.0,42398.0,0.41080899]
[1644633059782,0.33630812,42399.0,42398.0,0.41080899]
[1644633059985,0.00664712,42399.0,42398.0,0.41080899]
[1644633060182,0.27263103,42399.0,42398.0,0.41080899]
[1644633060384,0.86278475,42399.0,42398.0,0.41080899]
[1644633060587,0.53312375,42399.0,42398.0,0.41080899]
[1644633060784,0.86278475,42399.0,42398.0,0.41059491]
[1644633060983,0.53312375,42399.0,42398.0,0.41059491]
[1644633061185,0.26713984,42399.0,42398.0,0.41059491]
[1644633061386,0.00664712,42399.0,42398.0,0.41059491]
[1644633061884,0.00664712,42399.0,42398.0,0.50056142]
[1644633062956,0.00664712,42399.0,42398.0,0.75138136]
[1644633067683,0.00664712,42399.0,42398.0,0.50056142]
[1644633069283,0.329661,42408.0,42401.0,0.22307471]
[1644633069487,0.329661,42407.0,42401.0,0.22307471]
[1644633069683,0.329661,42407.0,42399.0,0.00021408]
[1644633069883,0.329661,42407.0,42401.0,0.20054758]
[1644633070532,0.27614013,42410.0,42401.0,0.20054758]
[1644633070734,0.329661,42409.0,42401.0,0.20076166]
[1644633070933,0.1,42409.0,42402.0,0.00052087]
[1644633071132,0.329661,42408.0,42402.0,0.00073495]
[1644633071334,0.329661,42408.0,42402.0,0.20128253]
[1644633071533,0.51304451,42408.0,42402.0,0.00052087]
[1644633071732,0.18338351,42408.0,42402.0,0.00052087]
[1644633071933,0.329661,42407.0,42401.0,0.00021408]
[1644633072138,0.329661,42406.0,42403.0,0.00052086]
[1644633073134,0.329661,42406.0,42401.0,0.00021408]
[1644633073335,0.18338351,42408.0,42402.0,0.00052086]
[1644633073536,0.329661,42407.0,42402.0,0.00052086]
[1644633073736,0.18338351,42408.0,42402.0,0.00052086]
[1644633074187,0.329661,42407.0,42402.0,0.00052086]
[1644633074389,0.329661,42407.0,42403.0,0.00052086]
[1644633075990,0.26014961,42406.0,42403.0,0.00052086]
[1644633076188,0.329661,42405.0,42403.0,0.00052086]
[1644633076587,0.329661,42405.0,42401.0,0.00021408]
[1644633076789,0.18402144,42405.0,42402.0,0.00052086]
[1644633076990,0.329661,42404.0,42402.0,0.00052086]
[1644633077190,0.41602792,42403.0,42402.0,0.00052086]
[1644633077393,0.50346022,42403.0,42402.0,0.00073494]
[1644633077590,0.83312122,42403.0,42402.0,0.00073494]
[1644633077831,0.83312122,42403.0,42402.0,0.00021408]
[1644633078131,0.329661,42402.0,42401.0,0.01]
[1644633078332,0.329661,42402.0,42401.0,0.01021408]
[1644633079334,0.329661,42402.0,42401.0,0.01]
[1644633081783,0.41602792,42403.0,42401.0,0.01]
[1644633081983,0.23191298,42403.0,42401.0,0.01]
[1644633082785,0.07166887,42402.0,42401.0,0.01]
[1644633083084,0.2542519,42402.0,42401.0,0.01021408]
[1644633083282,0.07166887,42402.0,42401.0,0.01]
[1644633083484,0.07166887,42402.0,42401.0,0.01021408]
[1644633083485,0.40132987,42402.0,42401.0,0.01021408]
[1644633083783,0.07166887,42402.0,42401.0,0.01021408]
[1644633083986,0.07166887,42402.0,42401.0,0.01]
[1644633084784,0.07720934,42402.0,42401.0,0.01]
[1644633087134,0.40687034,42402.0,42401.0,0.01]
[1644633087535,0.07720934,42402.0,42401.0,0.01]
[1644633087738,0.40687034,42402.0,42401.0,0.01]
[1644633088537,0.07720934,42402.0,42401.0,0.01]
[1644633089783,0.40687034,42402.0,42401.0,0.01]
[1644633090185,0.07720934,42402.0,42401.0,0.01]
[1644633090389,0.00554047,42402.0,42401.0,0.01]
[1644633090585,0.12274315,42405.0,42401.0,0.01]
[1644633090785,0.17274315,42405.0,42401.0,0.01]
[1644633090986,0.05,42405.0,42401.0,0.01]
[1644633091186,0.46014961,42406.0,42401.0,0.01052087]
[1644633091585,0.24451665,42402.0,42401.0,0.01052087]
[1644633091985,0.24451665,42402.0,42401.0,0.01073495]
[1644633092186,0.46014961,42406.0,42401.0,0.01]
[1644633092385,0.329661,42405.0,42401.0,0.01]
[1644633092587,0.05,42405.0,42401.0,0.01]
[1644633092833,0.1,42405.0,42401.0,0.01]
[1644633093037,0.39627064,42404.0,42401.0,0.01]
[1644633093235,0.06660964,42404.0,42401.0,0.01]
[1644633093436,0.16660964,42404.0,42401.0,0.01]
[1644633093839,0.16660964,42404.0,42401.0,0.01021408]
[1644633094240,0.21878591,42402.0,42401.0,0.01021408]
[1644633094843,0.21878591,42402.0,42401.0,0.01]
[1644633099191,0.21878591,42402.0,42398.0,0.41059491]
[1644633100094,0.22340297,42402.0,42398.0,0.41059491]
[1644633109637,0.00461706,42402.0,42398.0,0.6314237]
[1644633110040,0.00461706,42402.0,42400.0,0.20065652]
[1644633110239,0.00461706,42402.0,42401.0,0.20065652]
[1644633111693,0.20126688,42408.0,42401.0,0.20065652]
[1644633111897,0.00052079,42408.0,42405.0,0.20062747]
[1644633112094,0.00052079,42408.0,42407.0,0.20062747]
[1644633112293,0.00052079,42408.0,42407.0,0.22070247]
[1644633112493,0.00052079,42408.0,42407.0,0.48315994]
[1644633112792,0.0001,42413.0,42408.0,0.117918]
[1644633112992,0.00052082,42410.0,42409.0,0.017688]
[1644633113993,0.0001,42414.0,42409.0,0.017688]
[1644633114193,0.00052081,42412.0,42409.0,0.017688]
[1644633115193,0.0001,42414.0,42409.0,0.017688]
[1644633115436,0.00052077,42413.0,42409.0,0.017688]
[1644633116341,0.0001,42414.0,42409.0,0.017688]
[1644633116635,0.00052076,42413.0,42409.0,0.017688]
[1644633117436,0.0001,42414.0,42409.0,0.017688]
[1644633117838,0.00052076,42413.0,42409.0,0.017688]
[1644633118037,0.00052076,42413.0,42410.0,0.058958]
[1644633118638,0.0001,42414.0,42410.0,0.058958]
[1644633118840,0.00062076,42414.0,42410.0,0.058958]
[1644633119790,0.00246041,42413.0,42410.0,0.06042271]
[1644633122396,0.00246041,42413.0,42411.0,0.020068]
[1644633122597,0.00246041,42413.0,42412.0,0.020066]
[1644633123240,0.00246041,42413.0,42412.0,0.020065]
[1644633123641,0.00246041,42413.0,42410.0,0.06042271]
[1644633125042,0.00052076,42414.0,42410.0,0.06042271]
[1644633125242,0.00052076,42414.0,42411.0,0.058956]
[1644633125844,0.00034854,42418.0,42411.0,0.058956]
[1644633126044,0.00034854,42418.0,42413.0,0.058957]
[1644633126244,0.00052076,42415.0,42413.0,0.058957]
[1644633127099,0.00034854,42418.0,42414.0,0.23306437]
[1644633127297,0.00052075,42416.0,42414.0,0.23306437]
[1644633127497,0.00052075,42416.0,42415.0,0.020061]
[1644633127697,0.00052075,42416.0,42413.0,0.117911]
[1644633128300,0.00034854,42418.0,42413.0,0.117911]
[1644633128499,0.00052075,42417.0,42413.0,0.117911]
[1644633129303,0.35,42416.0,42408.0,0.14162954]
[1644633129500,0.0001,42415.0,42410.0,0.020067]
[1644633129700,0.0001,42415.0,42408.0,0.082674]
[1644633129901,0.00255975,42415.0,42408.0,0.082674]
[1644633130542,0.24000288,42415.0,42412.0,0.11791]
[1644633130743,0.0001,42414.0,42412.0,0.11791]
[1644633130943,0.00062076,42414.0,42412.0,0.11791]
[1644633131543,0.00052076,42414.0,42412.0,0.11791]
[1644633131947,0.00245975,42415.0,42412.0,0.11791]
[1644633132145,0.0029805,42415.0,42412.0,0.11791]
[1644633132545,0.0029805,42415.0,42412.0,0.176865]
[1644633132748,0.0029805,42415.0,42412.0,0.11791]
[1644633133148,0.00245975,42415.0,42412.0,0.11791]
[1644633136901,0.00245975,42415.0,42413.0,0.020065]
[1644633137500,0.00245975,42415.0,42412.0,0.38798448]
[1644633137700,0.00245975,42415.0,42412.0,0.43528448]
[1644633137940,0.00245975,42415.0,42413.0,0.020063]
[1644633138144,0.00245975,42415.0,42413.0,0.079017]
[1644633138939,0.00245975,42415.0,42413.0,0.12219883]
[1644633141791,0.00245975,42415.0,42413.0,0.058954]
[1644633144395,0.21653185,42414.0,42413.0,0.058954]
[1644633144593,0.21663185,42414.0,42412.0,0.11791]
[1644633146040,0.0001,42414.0,42412.0,0.11791]
[1644633146240,0.00245975,42415.0,42412.0,0.11791]
[1644633146642,0.0029805,42415.0,42413.0,0.020063]
[1644633146841,0.0029805,42415.0,42412.0,0.41582857]
[1644633147441,0.0029805,42415.0,42412.0,0.6521357]
[1644633149494,0.0029805,42415.0,42412.0,0.35421713]
[1644633151292,0.0029805,42415.0,42412.0,0.11791]
[1644633151993,0.00245975,42415.0,42412.0,0.11791]
[1644633153842,0.00237293,42415.0,42412.0,0.11791]
[1644633154243,0.00237293,42415.0,42412.0,0.176866]
[1644633155644,0.00237293,42415.0,42413.0,0.00129174]
[1644633156046,0.00237293,42415.0,42413.0,0.06024574]
[1644633156249,0.00237293,42415.0,42413.0,0.00129174]
[1644633158097,0.24815433,42415.0,42413.0,0.00129174]
[1644633159394,0.24815433,42415.0,42413.0,0.00053135]
[1644633160341,0.24815433,42415.0,42413.0,0.05949135]
[1644633160543,0.24815433,42415.0,42413.0,0.05896]
[1644633161345,0.24815433,42415.0,42409.0,0.20061693]
[1644633161346,0.329661,42414.0,42409.0,0.20061693]
[1644633161546,0.329661,42414.0,42406.0,0.25066243]
[1644633161547,0.329661,42412.0,42406.0,0.20061693]
[1644633161745,0.329661,42410.0,42405.0,0.117929]
[1644633162143,0.08397179,42408.0,42405.0,0.117929]
[1644633162344,0.329661,42407.0,42405.0,0.117929]
[1644633165598,0.28047069,42408.0,42405.0,0.117929]
[1644633165795,0.329661,42407.0,42405.0,0.117929]
[1644633166202,0.28047069,42408.0,42405.0,0.117929]
[1644633167599,0.329661,42406.0,42405.0,0.117929]
[1644633167844,0.329661,42405.0,42403.0,0.20061693]
[1644633168046,0.28047069,42408.0,42403.0,0.20061693]
[1644633168247,0.329661,42407.0,42404.0,0.25958893]
[1644633168946,0.28047069,42408.0,42404.0,0.25958893]
[1644633170148,0.28250085,42408.0,42404.0,0.25958893]
[1644633173296,0.19852906,42408.0,42404.0,0.25958893]
[1644633176247,0.00259117,42408.0,42405.0,0.27302915]
[1644633176552,0.00259117,42408.0,42405.0,0.39095815]
[1644633176747,0.00259117,42408.0,42405.0,0.117929]
[1644633177144,0.00203016,42408.0,42405.0,0.117929]
[1644633179895,0.00194897,42408.0,42405.0,0.117929]
[1644633180294,0.00194897,42408.0,42404.0,0.117929]
[1644633180896,0.00250998,42408.0,42404.0,0.117929]
[1644633181498,0.00250998,42408.0,42404.0,2.26587144]
[1644633181700,0.329661,42407.0,42404.0,2.32483844]
[1644633182299,0.329661,42405.0,42404.0,2.32483844]
[1644633182838,0.20480587,42406.0,42404.0,0.176896]
[1644633183341,0.20480587,42406.0,42404.0,0.117929]
[1644633186344,0.329661,42405.0,42404.0,0.117929]
[1644633186596,0.28390317,42406.0,42403.0,0.117933]
[1644633188096,0.329661,42405.0,42403.0,0.117933]
[1644633188496,0.28390317,42406.0,42403.0,0.117933]
[1644633189295,0.329661,42407.0,42403.0,0.117933]
[1644633189494,0.5801415,42407.0,42404.0,1.78201332]
[1644633189697,0.5801415,42407.0,42403.0,0.117933]
[1644633190097,0.329661,42405.0,42403.0,0.117933]
[1644633190546,0.00201588,42406.0,42403.0,0.117933]
[1644633190846,0.329661,42405.0,42403.0,0.117933]
[1644633191246,0.329661,42404.0,42403.0,0.117933]
[1644633191446,0.329661,42405.0,42403.0,0.117933]
[1644633191647,0.00201588,42406.0,42403.0,0.117933]
[1644633191846,0.00201588,42406.0,42403.0,0.31854993]
[1644633192047,0.329661,42405.0,42403.0,0.31854993]
[1644633192250,0.329661,42405.0,42403.0,0.117933]
[1644633192849,0.00201588,42406.0,42403.0,0.117933]
[1644633193049,0.329661,42405.0,42403.0,0.31854993]
[1644633193450,0.00201588,42406.0,42403.0,0.31854993]
[1644633193650,0.329661,42405.0,42403.0,0.31854993]
[1644633193849,0.00201588,42406.0,42403.0,0.31854993]
[1644633195298,0.2504805,42407.0,42404.0,0.00131576]
[1644633195596,0.25350854,42406.0,42404.0,0.00131576]
[1644633195997,0.2504805,42407.0,42404.0,0.00131576]
[1644633196197,0.24746763,42406.0,42404.0,0.00131576]
[1644633196397,0.329661,42405.0,42404.0,0.00131576]
[1644633196596,0.2504805,42407.0,42404.0,0.00131576]
[1644633196799,0.2511003,42406.0,42404.0,0.00131576]
[1644633197401,0.2504805,42407.0,42404.0,0.00131576]
[1644633197852,0.2504805,42407.0,42404.0,0.20193269]
[1644633198050,0.329661,42406.0,42404.0,0.20193269]
[1644633198651,0.2504805,42407.0,42404.0,0.20193269]
[1644633198950,0.329661,42406.0,42404.0,0.20193269]
[1644633199153,0.2504805,42407.0,42404.0,0.20193269]
[1644633199351,0.329661,42406.0,42404.0,0.20193269]
[1644633200056,0.33101203,42406.0,42404.0,0.20061693]
[1644633200255,0.00135103,42406.0,42403.0,0.31989707]
[1644633200453,0.00135103,42406.0,42404.0,0.20061693]
[1644633200652,0.329661,42405.0,42404.0,0.20061693]